[Event "Live Chess"]
[Site "Chess.com"]
[Date "2024.06.02"]
[Round "-"]
[White "TheSmoulderingMaster"]
[Black "Andriy_Yaremovych"]
[Result "0-1"]
[WhiteElo "1777"]
[BlackElo "1641"]
[TimeControl "300"]
[EndTime "5:26:05 PDT"]
[Termination "Andriy_Yaremovych won by resignation"]

1. e4 {[%clk 0:04:58.1]} 1... b6 {[%clk 0:04:58.5]} 2. d4 {[%clk 0:04:56.5]}
2... Bb7 {[%clk 0:04:58.4]} 3. Nc3 {[%clk 0:04:55.1]} 3... Nf6 {[%clk
0:04:58.3]} 4. Nf3 {[%clk 0:04:53.6]} 4... Nxe4 {[%clk 0:04:56.7]} 5. Nxe4
{[%clk 0:04:52]} 5... Bxe4 {[%clk 0:04:56.6]} 6. Bc4 {[%clk 0:04:50.5]} 6... e6
{[%clk 0:04:54.2]} 7. O-O {[%clk 0:04:48.8]} 7... h6 {[%clk 0:04:53]} 8. Re1
{[%clk 0:04:48.1]} 8... Bb7 {[%clk 0:04:51]} 9. d5 {[%clk 0:04:46.6]} 9... Qe7
{[%clk 0:04:50.1]} 10. Bf4 {[%clk 0:04:42.7]} 10... Kd8 {[%clk 0:04:44.6]} 11.
dxe6 {[%clk 0:04:35.9]} 11... fxe6 {[%clk 0:04:43.4]} 12. Rxe6 {[%clk
0:04:33.4]} 12... Qb4 {[%clk 0:04:36.8]} 13. Bb3 {[%clk 0:04:26.3]} 13... Nc6
{[%clk 0:04:32]} 14. Qd3 {[%clk 0:04:10.6]} 14... Qxf4 {[%clk 0:04:28.6]} 15.
Rae1 {[%clk 0:04:08.1]} 15... Bd6 {[%clk 0:04:25.8]} 16. R6e4 {[%clk 0:04:00.7]}
16... Qf6 {[%clk 0:04:19.9]} 17. c4 {[%clk 0:03:51.5]} 17... Rf8 {[%clk
0:04:10.4]} 18. Bc2 {[%clk 0:03:49.4]} 18... Nb4 {[%clk 0:04:07.9]} 19. Qc3
{[%clk 0:03:46.8]} 19... Nxc2 {[%clk 0:04:05.6]} 20. Qxc2 {[%clk 0:03:45.9]}
20... Bxe4 {[%clk 0:04:02.6]} 21. Qxe4 {[%clk 0:03:44.9]} 21... c6 {[%clk
0:03:55.9]} 22. a3 {[%clk 0:03:42.8]} 22... Kc7 {[%clk 0:03:54.1]} 23. b4 {[%clk
0:03:41.6]} 23... Rae8 {[%clk 0:03:49]} 24. Qb1 {[%clk 0:03:37.2]} 24... Rxe1+
{[%clk 0:03:46.5]} 25. Qxe1 {[%clk 0:03:36.2]} 25... Qf4 {[%clk 0:03:44.9]} 26.
c5 {[%clk 0:03:34.1]} 26... bxc5 {[%clk 0:03:43.3]} 27. bxc5 {[%clk 0:03:33.1]}
27... Bxc5 {[%clk 0:03:43.1]} 28. Qa5+ {[%clk 0:03:31]} 28... Bb6 {[%clk
0:03:41.6]} 29. Qc3 {[%clk 0:03:23.9]} 29... g5 {[%clk 0:03:39.4]} 30. h3 {[%clk
0:03:22.2]} 30... g4 {[%clk 0:03:37.6]} 31. hxg4 {[%clk 0:03:20.3]} 31... Qxg4
{[%clk 0:03:36.7]} 32. Qe5+ {[%clk 0:03:18.5]} 32... Kc8 {[%clk 0:03:34]} 33.
Qe2 {[%clk 0:03:06.4]} 33... h5 {[%clk 0:03:27.9]} 34. a4 {[%clk 0:03:05]} 34...
h4 {[%clk 0:03:26.5]} 35. a5 {[%clk 0:03:04.1]} 35... Bc5 {[%clk 0:03:25]} 36.
Qa6+ {[%clk 0:03:01.9]} 36... Kb8 {[%clk 0:03:22.9]} 37. Qe2 {[%clk 0:02:58.2]}
37... h3 {[%clk 0:03:21.2]} 0-1

[Event "Live Chess"]
[Site "Chess.com"]
[Date "2024.06.02"]
[Round "-"]
[White "MaksymYurii"]
[Black "StoreySniper"]
[Result "0-1"]
[WhiteElo "999"]
[BlackElo "2497"]
[TimeControl "300"]
[EndTime "5:26:10 PDT"]
[Termination "StoreySniper won by checkmate"]

1. e4 {[%clk 0:04:56.8]} 1... d5 {[%clk 0:04:58.5]} 2. exd5 {[%clk 0:04:55.5]}
2... e6 {[%clk 0:04:56.9]} 3. dxe6 {[%clk 0:04:53.6]} 3... Bxe6 {[%clk
0:04:56.2]} 4. Nf3 {[%clk 0:04:52.5]} 4... Nf6 {[%clk 0:04:55.4]} 5. Be2 {[%clk
0:04:51.7]} 5... Nc6 {[%clk 0:04:53.4]} 6. O-O {[%clk 0:04:50.8]} 6... Bc5
{[%clk 0:04:51.1]} 7. Nc3 {[%clk 0:04:50]} 7... Qd7 {[%clk 0:04:48.9]} 8. d4
{[%clk 0:04:48.6]} 8... Nxd4 {[%clk 0:04:47]} 9. Nxd4 {[%clk 0:04:47.4]} 9...
Qxd4 {[%clk 0:04:45.3]} 10. Qxd4 {[%clk 0:04:45.4]} 10... Bxd4 {[%clk
0:04:44.7]} 11. Bd2 {[%clk 0:04:39.6]} 11... O-O-O {[%clk 0:04:42.8]} 12. Rfd1
{[%clk 0:04:34.9]} 12... Rhe8 {[%clk 0:04:40.1]} 13. Nb5 {[%clk 0:04:24.5]}
13... Bb6 {[%clk 0:04:37.4]} 14. Be3 {[%clk 0:04:20.8]} 14... Bxe3 {[%clk
0:04:33.7]} 15. fxe3 {[%clk 0:04:20.5]} 15... a6 {[%clk 0:04:30.6]} 16. Rxd8+
{[%clk 0:04:15.7]} 16... Rxd8 {[%clk 0:04:27.3]} 17. Nc3 {[%clk 0:04:13.2]}
17... Bf5 {[%clk 0:04:21.7]} 18. e4 {[%clk 0:04:05.9]} 18... Nxe4 {[%clk
0:04:15.5]} 19. Nxe4 {[%clk 0:04:05.4]} 19... Bxe4 {[%clk 0:04:14.7]} 20. Bg4+
{[%clk 0:04:00.9]} 20... f5 {[%clk 0:04:13.1]} 21. Bf3 {[%clk 0:03:58.2]} 21...
Bxf3 {[%clk 0:04:11.4]} 22. gxf3 {[%clk 0:03:56.5]} 22... Rd2 {[%clk 0:04:11]}
23. Rc1 {[%clk 0:03:54.3]} 23... f4 {[%clk 0:04:09.5]} 24. a4 {[%clk 0:03:48.5]}
24... Kd7 {[%clk 0:04:07.4]} 25. b3 {[%clk 0:03:47]} 25... Kd6 {[%clk
0:04:05.1]} 26. h4 {[%clk 0:03:44.8]} 26... Kc5 {[%clk 0:04:00.6]} 27. Kf1
{[%clk 0:03:44.1]} 27... Kd4 {[%clk 0:03:59]} 28. Ke1 {[%clk 0:03:43.2]} 28...
Ke3 {[%clk 0:03:57.9]} 29. Kf1 {[%clk 0:03:33]} 29... Kxf3 {[%clk 0:03:54.8]}
30. Kg1 {[%clk 0:03:29.7]} 30... Kg3 {[%clk 0:03:52.4]} 31. Kh1 {[%clk
0:03:26.9]} 31... Kxh4 {[%clk 0:03:51.2]} 32. c4 {[%clk 0:03:24]} 32... g5
{[%clk 0:03:49.2]} 33. Rc3 {[%clk 0:03:20.6]} 33... g4 {[%clk 0:03:48.1]} 34.
Kg1 {[%clk 0:03:17.9]} 34... g3 {[%clk 0:03:47]} 35. Kf1 {[%clk 0:03:17]} 35...
Kg4 {[%clk 0:03:45.9]} 36. Ke1 {[%clk 0:03:13.5]} 36... Rb2 {[%clk 0:03:44.4]}
37. Kd1 {[%clk 0:03:11.8]} 37... g2 {[%clk 0:03:42.7]} 38. Kc1 {[%clk
0:03:11.2]} 38... Rf2 {[%clk 0:03:41.4]} 39. Rc2 {[%clk 0:03:07.3]} 39... g1=Q+
{[%clk 0:03:40]} 40. Kb2 {[%clk 0:03:06.5]} 40... Rxc2+ {[%clk 0:03:38.9]} 41.
Kxc2 {[%clk 0:03:05.4]} 41... Qd4 {[%clk 0:03:37.9]} 42. Kb1 {[%clk 0:03:02.6]}
42... f3 {[%clk 0:03:37.3]} 43. Kc2 {[%clk 0:03:01.7]} 43... f2 {[%clk
0:03:36.7]} 44. Kb1 {[%clk 0:03:01.6]} 44... f1=Q+ {[%clk 0:03:35.7]} 45. Kc2
{[%clk 0:03:01.5]} 45... Qe2+ {[%clk 0:03:35]} 46. Kc1 {[%clk 0:03:01.4]} 46...
Qdb2# {[%clk 0:03:33.6]} 0-1

[Event "Live Chess"]
[Site "Chess.com"]
[Date "2024.06.02"]
[Round "-"]
[White "Mikhail_Golubev"]
[Black "IgorSchukin"]
[Result "1-0"]
[WhiteElo "2484"]
[BlackElo "1772"]
[TimeControl "300"]
[EndTime "5:26:32 PDT"]
[Termination "Mikhail_Golubev won by resignation"]

1. d4 {[%clk 0:04:56.7]} 1... d5 {[%clk 0:04:58.5]} 2. c4 {[%clk 0:04:52.9]}
2... e6 {[%clk 0:04:56.5]} 3. Nf3 {[%clk 0:04:51.5]} 3... Nf6 {[%clk 0:04:54.5]}
4. Nc3 {[%clk 0:04:50.4]} 4... Be7 {[%clk 0:04:53.4]} 5. Bf4 {[%clk 0:04:48.5]}
5... c6 {[%clk 0:04:51.8]} 6. e3 {[%clk 0:04:47.2]} 6... O-O {[%clk 0:04:46.4]}
7. h3 {[%clk 0:04:42.8]} 7... dxc4 {[%clk 0:04:38.8]} 8. Bxc4 {[%clk 0:04:40.4]}
8... b5 {[%clk 0:04:37.8]} 9. Bd3 {[%clk 0:04:38.2]} 9... Bb7 {[%clk 0:04:36.8]}
10. O-O {[%clk 0:04:35.4]} 10... a6 {[%clk 0:04:35.1]} 11. Ne4 {[%clk
0:04:28.1]} 11... Nxe4 {[%clk 0:04:31.4]} 12. Bxe4 {[%clk 0:04:27]} 12... Nd7
{[%clk 0:04:29.7]} 13. Rc1 {[%clk 0:04:24.5]} 13... Qb6 {[%clk 0:04:27.5]} 14.
Ne5 {[%clk 0:04:15]} 14... Nxe5 {[%clk 0:04:21.9]} 15. Bxe5 {[%clk 0:04:14.9]}
15... f6 {[%clk 0:04:19.7]} 16. Qh5 {[%clk 0:04:06.4]} 16... f5 {[%clk
0:04:12.5]} 17. Bf3 {[%clk 0:03:45.3]} 17... Bf6 {[%clk 0:04:09.8]} 18. Rc5
{[%clk 0:03:37.8]} 18... Rad8 {[%clk 0:03:45.6]} 19. Bxf6 {[%clk 0:03:32.7]}
19... Rxf6 {[%clk 0:03:42.3]} 20. Rfc1 {[%clk 0:03:31.5]} 20... Rc8 {[%clk
0:03:08.1]} 21. Bxc6 {[%clk 0:03:17.8]} 21... g6 {[%clk 0:03:04.2]} 22. Qf3
{[%clk 0:03:14.8]} 22... Bxc6 {[%clk 0:02:47.1]} 23. Rxc6 {[%clk 0:03:13.3]}
23... Rxc6 {[%clk 0:02:44.3]} 24. Rxc6 {[%clk 0:03:11.4]} 24... Qa5 {[%clk
0:02:42]} 25. Qf4 {[%clk 0:02:41]} 25... Qxa2 {[%clk 0:02:22.4]} 26. Qh6 {[%clk
0:02:06.3]} 1-0

[Event "Live Chess"]
[Site "Chess.com"]
[Date "2024.06.02"]
[Round "-"]
[White "juniortay"]
[Black "matt1979"]
[Result "1-0"]
[WhiteElo "2338"]
[BlackElo "1409"]
[TimeControl "300"]
[EndTime "5:26:33 PDT"]
[Termination "juniortay won by checkmate"]

1. e4 {[%clk 0:04:57.3]} 1... d6 {[%clk 0:04:58.8]} 2. Nc3 {[%clk 0:04:55.8]}
2... Nf6 {[%clk 0:04:56.9]} 3. f4 {[%clk 0:04:55.7]} 3... e5 {[%clk 0:04:55.2]}
4. Nf3 {[%clk 0:04:55.6]} 4... Nbd7 {[%clk 0:04:53.7]} 5. Bc4 {[%clk 0:04:52.2]}
5... Be7 {[%clk 0:04:51.9]} 6. d3 {[%clk 0:04:51]} 6... O-O {[%clk 0:04:49]} 7.
O-O {[%clk 0:04:48.8]} 7... c6 {[%clk 0:04:48.2]} 8. a4 {[%clk 0:04:45.3]} 8...
b6 {[%clk 0:04:45.3]} 9. Qe1 {[%clk 0:04:43]} 9... Bb7 {[%clk 0:04:43.1]} 10.
Kh1 {[%clk 0:04:41.6]} 10... a6 {[%clk 0:04:37.8]} 11. fxe5 {[%clk 0:04:39.3]}
11... Nxe5 {[%clk 0:04:32]} 12. Nxe5 {[%clk 0:04:37.4]} 12... dxe5 {[%clk
0:04:31]} 13. Qg3 {[%clk 0:04:35.6]} 13... Qc7 {[%clk 0:04:23.1]} 14. Bh6 {[%clk
0:04:32.7]} 14... Ne8 {[%clk 0:04:20]} 15. Rf3 {[%clk 0:04:28.3]} 15... b5
{[%clk 0:04:08.9]} 16. Bb3 {[%clk 0:04:26.7]} 16... Kh8 {[%clk 0:03:58.8]} 17.
Bg5 {[%clk 0:04:21.2]} 17... Bxg5 {[%clk 0:03:56.9]} 18. Qxg5 {[%clk 0:04:20.2]}
18... f6 {[%clk 0:03:50.5]} 19. Raf1 {[%clk 0:03:58.8]} 19... b4 {[%clk
0:03:39.9]} 20. Ne2 {[%clk 0:03:54.2]} 20... a5 {[%clk 0:03:38.6]} 21. Rh3
{[%clk 0:03:47.4]} 21... Bc8 {[%clk 0:03:24.8]} 22. Rxh7+ {[%clk 0:03:44.7]}
22... Kxh7 {[%clk 0:03:22]} 23. Qh5# {[%clk 0:03:43.9]} 1-0

[Event "Live Chess"]
[Site "Chess.com"]
[Date "2024.06.02"]
[Round "-"]
[White "TheRedDrag"]
[Black "ZatixMajor"]
[Result "0-1"]
[WhiteElo "2161"]
[BlackElo "2056"]
[TimeControl "300"]
[EndTime "5:26:34 PDT"]
[Termination "ZatixMajor won by resignation"]

1. e4 {[%clk 0:04:58]} 1... c5 {[%clk 0:04:59.4]} 2. Nf3 {[%clk 0:04:56.7]} 2...
Nc6 {[%clk 0:04:58.9]} 3. c3 {[%clk 0:04:56.2]} 3... Nf6 {[%clk 0:04:56.2]} 4.
e5 {[%clk 0:04:55.2]} 4... Nd5 {[%clk 0:04:55.8]} 5. d4 {[%clk 0:04:54.7]} 5...
cxd4 {[%clk 0:04:55.7]} 6. cxd4 {[%clk 0:04:54]} 6... d6 {[%clk 0:04:55.4]} 7.
Nc3 {[%clk 0:04:51.9]} 7... dxe5 {[%clk 0:04:54.2]} 8. dxe5 {[%clk 0:04:50.2]}
8... Nxc3 {[%clk 0:04:51.2]} 9. Qxd8+ {[%clk 0:04:48.8]} 9... Nxd8 {[%clk
0:04:51.1]} 10. bxc3 {[%clk 0:04:48]} 10... Nc6 {[%clk 0:04:50]} 11. Bb5 {[%clk
0:04:46.9]} 11... Bg4 {[%clk 0:04:47.4]} 12. Nd4 {[%clk 0:04:45]} 12... Rc8
{[%clk 0:04:44.4]} 13. Bf4 {[%clk 0:04:40.8]} 13... Bd7 {[%clk 0:04:42.7]} 14.
Rc1 {[%clk 0:04:37.2]} 14... Nxd4 {[%clk 0:04:36]} 15. Bxd7+ {[%clk 0:04:37.1]}
15... Kxd7 {[%clk 0:04:35]} 16. cxd4 {[%clk 0:04:37]} 16... Rxc1+ {[%clk
0:04:34.3]} 17. Bxc1 {[%clk 0:04:36.9]} 17... e6 {[%clk 0:04:32.1]} 18. Ke2
{[%clk 0:04:35.4]} 18... Bb4 {[%clk 0:04:29]} 19. Kd3 {[%clk 0:04:34.3]} 19...
Rc8 {[%clk 0:04:27.9]} 20. Bb2 {[%clk 0:04:32.2]} 20... b5 {[%clk 0:04:24.1]}
21. Rc1 {[%clk 0:04:31]} 21... Rxc1 {[%clk 0:04:21.8]} 22. Bxc1 {[%clk
0:04:23.5]} 22... a5 {[%clk 0:04:19.7]} 23. f4 {[%clk 0:04:16.6]} 23... Kc6
{[%clk 0:04:18.3]} 24. g4 {[%clk 0:04:15.5]} 24... Kd5 {[%clk 0:04:16.9]} 25. f5
{[%clk 0:04:12.9]} 25... Be1 {[%clk 0:04:11.7]} 26. h3 {[%clk 0:04:07.7]} 26...
a4 {[%clk 0:04:04.1]} 27. Be3 {[%clk 0:03:50.3]} 27... b4 {[%clk 0:03:58.7]} 28.
Bc1 {[%clk 0:03:48.2]} 28... Bc3 {[%clk 0:03:55.1]} 29. a3 {[%clk 0:03:42.2]}
29... Bxd4 {[%clk 0:03:51.8]} 30. axb4 {[%clk 0:03:41.5]} 30... Bxe5 {[%clk
0:03:50.7]} 31. fxe6 {[%clk 0:03:33]} 31... fxe6 {[%clk 0:03:44]} 32. Ba3 {[%clk
0:03:31.8]} 32... Bd6 {[%clk 0:03:39.7]} 33. Kc3 {[%clk 0:03:27.6]} 33... Ke4
{[%clk 0:03:33.8]} 34. Kc4 {[%clk 0:03:26.8]} 34... Kf3 {[%clk 0:03:27.2]} 35.
Bb2 {[%clk 0:03:25.6]} 35... e5 {[%clk 0:03:21]} 36. Kd5 {[%clk 0:03:12.8]}
36... Bxb4 {[%clk 0:03:19.5]} 37. Bxe5 {[%clk 0:03:12.1]} 37... g5 {[%clk
0:02:21.8]} 38. Bf6 {[%clk 0:03:03.2]} 38... Bd2 {[%clk 0:02:13.4]} 39. Kc4
{[%clk 0:02:57.8]} 39... Kg2 {[%clk 0:02:11.6]} 40. Kd3 {[%clk 0:02:54.2]} 40...
Bf4 {[%clk 0:02:08.9]} 41. Kc4 {[%clk 0:02:52.2]} 41... Kxh3 {[%clk 0:02:07.9]}
42. Kb4 {[%clk 0:02:51]} 42... Kxg4 {[%clk 0:02:07.4]} 43. Kxa4 {[%clk
0:02:50.6]} 43... h5 {[%clk 0:02:05.4]} 44. Kb3 {[%clk 0:02:46.3]} 44... h4
{[%clk 0:02:03]} 45. Bd4 {[%clk 0:02:43.7]} 45... h3 {[%clk 0:02:02]} 46. Bg1
{[%clk 0:02:41.3]} 46... h2 {[%clk 0:02:01.5]} 47. Bxh2 {[%clk 0:02:41.2]} 47...
Bxh2 {[%clk 0:02:00]} 0-1

[Event "Live Chess"]
[Site "Chess.com"]
[Date "2024.06.02"]
[Round "-"]
[White "Pandreq"]
[Black "booktrunk"]
[Result "1-0"]
[WhiteElo "1244"]
[BlackElo "1496"]
[TimeControl "300"]
[EndTime "5:26:36 PDT"]
[Termination "Pandreq won by resignation"]

1. d4 {[%clk 0:04:57.3]} 1... e6 {[%clk 0:04:56.5]} 2. c4 {[%clk 0:04:56.6]}
2... b6 {[%clk 0:04:55]} 3. Nc3 {[%clk 0:04:56.1]} 3... Bb7 {[%clk 0:04:54]} 4.
Nf3 {[%clk 0:04:55.6]} 4... h6 {[%clk 0:04:52.5]} 5. e3 {[%clk 0:04:54.7]} 5...
Nf6 {[%clk 0:04:51.6]} 6. g3 {[%clk 0:04:54]} 6... Bb4 {[%clk 0:04:50.3]} 7. Bg2
{[%clk 0:04:53]} 7... Ne4 {[%clk 0:04:45.5]} 8. Bd2 {[%clk 0:04:51.2]} 8... Nxd2
{[%clk 0:04:44]} 9. Qxd2 {[%clk 0:04:48]} 9... Nc6 {[%clk 0:04:41.3]} 10. a3
{[%clk 0:04:46.2]} 10... Be7 {[%clk 0:04:39.3]} 11. b4 {[%clk 0:04:44.5]} 11...
a6 {[%clk 0:04:32.5]} 12. O-O {[%clk 0:04:43.2]} 12... O-O {[%clk 0:04:29.1]}
13. Ne5 {[%clk 0:04:39.5]} 13... Rb8 {[%clk 0:04:11.7]} 14. Nd3 {[%clk
0:04:31.6]} 14... Bf6 {[%clk 0:04:06.6]} 15. Nf4 {[%clk 0:04:30.1]} 15... Ne7
{[%clk 0:04:03.1]} 16. Nh5 {[%clk 0:04:22.1]} 16... Bxg2 {[%clk 0:03:53.6]} 17.
Kxg2 {[%clk 0:04:20.9]} 17... Nc6 {[%clk 0:03:47.7]} 18. e4 {[%clk 0:04:09]}
18... d6 {[%clk 0:03:40.2]} 19. f4 {[%clk 0:03:56.5]} 19... e5 {[%clk 0:03:34]}
20. fxe5 {[%clk 0:03:52.4]} 20... Bg5 {[%clk 0:03:31.7]} 21. Qd3 {[%clk
0:03:43.8]} 21... dxe5 {[%clk 0:03:30.1]} 22. d5 {[%clk 0:03:41.6]} 22... Ne7
{[%clk 0:03:22]} 23. g4 {[%clk 0:03:21.8]} 23... Ng6 {[%clk 0:03:12.5]} 24. Ne2
{[%clk 0:03:13.9]} 24... Nh4+ {[%clk 0:03:09.6]} 25. Kh1 {[%clk 0:03:03.7]}
25... g6 {[%clk 0:03:04.8]} 26. Nhg3 {[%clk 0:03:02]} 26... Qd7 {[%clk
0:02:55.5]} 27. h3 {[%clk 0:02:55]} 27... Rbe8 {[%clk 0:02:45.9]} 28. Kh2 {[%clk
0:02:53.1]} 28... Re7 {[%clk 0:02:39.9]} 29. Rf2 {[%clk 0:02:50.3]} 29... f6
{[%clk 0:02:37.7]} 30. Raf1 {[%clk 0:02:48.6]} 30... Ref7 {[%clk 0:02:36.5]} 31.
c5 {[%clk 0:02:42.6]} 31... bxc5 {[%clk 0:02:32.2]} 32. bxc5 {[%clk 0:02:41.4]}
32... Qa4 {[%clk 0:02:24.7]} 33. c6 {[%clk 0:02:34.3]} 33... Qb5 {[%clk
0:02:21.2]} 34. Qxb5 {[%clk 0:02:29.8]} 34... axb5 {[%clk 0:02:19.8]} 35. Nc3
{[%clk 0:02:26.9]} 35... Rb8 {[%clk 0:02:17.2]} 36. Rb1 {[%clk 0:02:20.6]} 36...
Be3 {[%clk 0:02:13]} 37. Re2 {[%clk 0:02:09.8]} 37... Bd4 {[%clk 0:02:10.7]} 38.
Nxb5 {[%clk 0:02:02.2]} 38... Nf3+ {[%clk 0:02:07.5]} 39. Kg2 {[%clk 0:01:54.4]}
39... Ng5 {[%clk 0:02:03.8]} 40. a4 {[%clk 0:01:46]} 40... Nh7 {[%clk
0:01:58.7]} 41. Ree1 {[%clk 0:01:39]} 41... Nf8 {[%clk 0:01:58.6]} 42. Nxd4
{[%clk 0:01:37.7]} 42... Nh7 {[%clk 0:01:58.5]} 43. Ne6 {[%clk 0:01:35.9]} 43...
Nf8 {[%clk 0:01:58.4]} 44. Rxb8 {[%clk 0:01:32.9]} 1-0

[Event "Live Chess"]
[Site "Chess.com"]
[Date "2024.06.02"]
[Round "-"]
[White "Grace6363"]
[Black "bobby_jamesFischer86"]
[Result "0-1"]
[WhiteElo "1141"]
[BlackElo "1625"]
[TimeControl "300"]
[EndTime "5:26:44 PDT"]
[Termination "bobby_jamesFischer86 won by resignation"]

1. d4 {[%clk 0:04:58.5]} 1... d5 {[%clk 0:04:57]} 2. c4 {[%clk 0:04:57.6]} 2...
c6 {[%clk 0:04:56.4]} 3. Nc3 {[%clk 0:04:56.5]} 3... Nf6 {[%clk 0:04:55.7]} 4.
cxd5 {[%clk 0:04:55.2]} 4... cxd5 {[%clk 0:04:54.6]} 5. Nf3 {[%clk 0:04:54.8]}
5... e6 {[%clk 0:04:54.1]} 6. Bg5 {[%clk 0:04:52.9]} 6... Nc6 {[%clk 0:04:53.3]}
7. a3 {[%clk 0:04:51.7]} 7... Be7 {[%clk 0:04:52.3]} 8. e3 {[%clk 0:04:51]} 8...
h6 {[%clk 0:04:51.9]} 9. Bh4 {[%clk 0:04:49.9]} 9... Qb6 {[%clk 0:04:50.7]} 10.
b4 {[%clk 0:04:47]} 10... O-O {[%clk 0:04:47.7]} 11. Na4 {[%clk 0:04:43.9]}
11... Qd8 {[%clk 0:04:43.8]} 12. Rc1 {[%clk 0:04:41.8]} 12... Bd7 {[%clk
0:04:41.3]} 13. Bb5 {[%clk 0:04:36.2]} 13... Rc8 {[%clk 0:04:39.6]} 14. O-O
{[%clk 0:04:34.6]} 14... Ne4 {[%clk 0:04:36.6]} 15. Bxe7 {[%clk 0:04:32.5]}
15... Qxe7 {[%clk 0:04:35.4]} 16. Nc5 {[%clk 0:04:23.7]} 16... Nxc5 {[%clk
0:04:22.4]} 17. bxc5 {[%clk 0:04:14.4]} 17... a6 {[%clk 0:04:21.8]} 18. Bxc6
{[%clk 0:04:11.8]} 18... Bxc6 {[%clk 0:04:20.6]} 19. Ne5 {[%clk 0:04:07.8]}
19... Qg5 {[%clk 0:04:05.5]} 20. Qg4 {[%clk 0:04:02.7]} 20... Qxg4 {[%clk
0:04:02.4]} 21. Nxg4 {[%clk 0:04:02.1]} 21... f6 {[%clk 0:04:00.8]} 22. f4
{[%clk 0:03:59.8]} 22... h5 {[%clk 0:03:58.5]} 23. Nf2 {[%clk 0:03:56.8]} 23...
Rce8 {[%clk 0:03:54.5]} 24. h4 {[%clk 0:03:55.6]} 24... e5 {[%clk 0:03:53.5]}
25. fxe5 {[%clk 0:03:53.1]} 25... fxe5 {[%clk 0:03:52.8]} 26. Nh3 {[%clk
0:03:51]} 26... exd4 {[%clk 0:03:43.7]} 27. exd4 {[%clk 0:03:50.2]} 27... Bb5
{[%clk 0:03:42.6]} 28. Rxf8+ {[%clk 0:03:48.9]} 28... Rxf8 {[%clk 0:03:41.7]}
29. Ng5 {[%clk 0:03:45.1]} 29... Rf4 {[%clk 0:03:39.3]} 30. g3 {[%clk
0:03:26.1]} 30... Rxd4 {[%clk 0:03:37.2]} 31. Ne6 {[%clk 0:03:23]} 31... Rd3
{[%clk 0:03:31.5]} 32. Nd8 {[%clk 0:03:16.3]} 32... Bc6 {[%clk 0:03:26.7]} 33.
Rf1 {[%clk 0:02:53.9]} 33... Rxg3+ {[%clk 0:03:18.6]} 34. Kh2 {[%clk 0:02:52.7]}
34... Rxa3 {[%clk 0:03:16.9]} 35. Ne6 {[%clk 0:02:49.2]} 35... Ra2+ {[%clk
0:03:14.6]} 36. Kh3 {[%clk 0:02:47.7]} 36... Bd7 {[%clk 0:03:12.9]} 37. Rf8+
{[%clk 0:02:39]} 37... Kh7 {[%clk 0:03:07.9]} 38. Rf7 {[%clk 0:02:04.9]} 0-1

[Event "Live Chess"]
[Site "Chess.com"]
[Date "2024.06.02"]
[Round "-"]
[White "jimwad"]
[Black "AlanBstard10"]
[Result "1-0"]
[WhiteElo "1305"]
[BlackElo "1228"]
[TimeControl "300"]
[EndTime "5:27:07 PDT"]
[Termination "jimwad won by resignation"]

1. d4 {[%clk 0:04:56.6]} 1... Nf6 {[%clk 0:04:59]} 2. c4 {[%clk 0:04:55.8]} 2...
c5 {[%clk 0:04:57.1]} 3. Nc3 {[%clk 0:04:54]} 3... cxd4 {[%clk 0:04:51.4]} 4.
Qxd4 {[%clk 0:04:53.1]} 4... Nc6 {[%clk 0:04:49.2]} 5. Qd1 {[%clk 0:04:51.5]}
5... b6 {[%clk 0:04:47]} 6. b3 {[%clk 0:04:50.6]} 6... Bb7 {[%clk 0:04:46.3]} 7.
Nf3 {[%clk 0:04:49.5]} 7... g6 {[%clk 0:04:44.7]} 8. Bb2 {[%clk 0:04:43.8]} 8...
Bg7 {[%clk 0:04:43.5]} 9. e3 {[%clk 0:04:41.1]} 9... O-O {[%clk 0:04:42.5]} 10.
Be2 {[%clk 0:04:38.3]} 10... e6 {[%clk 0:04:39.1]} 11. O-O {[%clk 0:04:36.6]}
11... Rb8 {[%clk 0:04:38]} 12. Nd4 {[%clk 0:04:27.7]} 12... Nxd4 {[%clk
0:04:36.8]} 13. exd4 {[%clk 0:04:23.8]} 13... Ne8 {[%clk 0:04:31.8]} 14. Bf3
{[%clk 0:04:20.4]} 14... Bxf3 {[%clk 0:04:28]} 15. Qxf3 {[%clk 0:04:18.5]} 15...
Bxd4 {[%clk 0:04:22.9]} 16. Rad1 {[%clk 0:04:13.9]} 16... e5 {[%clk 0:04:11]}
17. Na4 {[%clk 0:04:08.3]} 17... Qf6 {[%clk 0:04:09.6]} 18. Qxf6 {[%clk
0:04:05.1]} 18... Nxf6 {[%clk 0:04:08.8]} 19. Bxd4 {[%clk 0:04:04]} 19... exd4
{[%clk 0:04:07.1]} 20. Rxd4 {[%clk 0:04:03]} 20... Kg7 {[%clk 0:04:02.8]} 21.
Nc3 {[%clk 0:04:01.3]} 21... Ra8 {[%clk 0:03:59.8]} 22. Rfd1 {[%clk 0:03:59.5]}
22... Rad8 {[%clk 0:03:58.3]} 23. Ne4 {[%clk 0:03:51.3]} 23... Nxe4 {[%clk
0:03:57]} 24. Rxe4 {[%clk 0:03:50.3]} 24... Rfe8 {[%clk 0:03:54.7]} 25. Rxe8
{[%clk 0:03:47.8]} 25... Rxe8 {[%clk 0:03:54]} 26. h3 {[%clk 0:03:46.4]} 26...
Re7 {[%clk 0:03:52.7]} 27. a4 {[%clk 0:03:43.7]} 27... Kf6 {[%clk 0:03:48.5]}
28. b4 {[%clk 0:03:42.8]} 28... Ke6 {[%clk 0:03:47.6]} 29. a5 {[%clk 0:03:39.3]}
29... bxa5 {[%clk 0:03:46.1]} 30. bxa5 {[%clk 0:03:38.2]} 30... Re8 {[%clk
0:03:43.6]} 31. c5 {[%clk 0:03:34.7]} 31... Ke7 {[%clk 0:03:42.8]} 32. Rd6
{[%clk 0:03:32]} 32... Rc8 {[%clk 0:03:40.2]} 33. Ra6 {[%clk 0:03:29.5]} 33...
Rxc5 {[%clk 0:03:38.2]} 34. Rxa7 {[%clk 0:03:28.7]} 34... Kd6 {[%clk 0:03:35.9]}
35. a6 {[%clk 0:03:26.3]} 35... Kc6 {[%clk 0:03:34.3]} 36. Kh2 {[%clk
0:03:22.1]} 36... d5 {[%clk 0:03:31.2]} 37. Rxf7 {[%clk 0:03:20.5]} 37... d4
{[%clk 0:03:30.5]} 38. a7 {[%clk 0:03:14.9]} 38... Ra5 {[%clk 0:03:28.9]} 39.
Rxh7 {[%clk 0:03:11.5]} 39... d3 {[%clk 0:03:26.2]} 40. Rh4 {[%clk 0:03:06.9]}
40... d2 {[%clk 0:03:23.9]} 41. Rd4 {[%clk 0:03:05.9]} 41... Rxa7 {[%clk
0:03:20.2]} 42. Rxd2 {[%clk 0:03:04.5]} 42... Rf7 {[%clk 0:03:18.7]} 43. Kg3
{[%clk 0:03:01.9]} 43... Kc5 {[%clk 0:03:17.3]} 44. f4 {[%clk 0:02:59.3]} 44...
Kc4 {[%clk 0:03:16.3]} 45. Kg4 {[%clk 0:02:57.5]} 45... Kc3 {[%clk 0:03:15.4]}
46. Rd6 {[%clk 0:02:56.4]} 46... Rg7 {[%clk 0:03:12.9]} 47. Kg5 {[%clk
0:02:53.7]} 47... Kc4 {[%clk 0:03:09.3]} 48. g4 {[%clk 0:02:52.7]} 48... Kc5
{[%clk 0:03:08]} 49. Rxg6 {[%clk 0:02:51.4]} 49... Re7 {[%clk 0:03:04.6]} 50.
Rf6 {[%clk 0:02:46.3]} 50... Rh7 {[%clk 0:03:02.9]} 51. h4 {[%clk 0:02:45.1]}
51... Kd5 {[%clk 0:03:02.1]} 52. Rf5+ {[%clk 0:02:40]} 52... Ke4 {[%clk
0:03:01]} 53. h5 {[%clk 0:02:36.6]} 53... Rg7+ {[%clk 0:02:59.4]} 54. Kh4 {[%clk
0:02:35.2]} 54... Rh7 {[%clk 0:02:47.9]} 55. Rf6 {[%clk 0:02:27]} 55... Rc7
{[%clk 0:02:42.5]} 56. g5 {[%clk 0:02:24.9]} 56... Rc1 {[%clk 0:02:38.9]} 57.
Re6+ {[%clk 0:02:22.7]} 57... Kf5 {[%clk 0:02:37.6]} 58. Rf6+ {[%clk 0:02:20.9]}
58... Ke4 {[%clk 0:02:35.9]} 59. g6 {[%clk 0:02:17.6]} 59... Rh1+ {[%clk
0:02:34.6]} 60. Kg5 {[%clk 0:02:16.5]} 60... Rg1+ {[%clk 0:02:33.6]} 61. Kh6
{[%clk 0:02:15.4]} 61... Kd5 {[%clk 0:02:28.1]} 62. g7 {[%clk 0:02:10.2]} 62...
Rg2 {[%clk 0:02:23]} 63. Rg6 {[%clk 0:02:09.1]} 63... Ra2 {[%clk 0:02:15]} 64.
g8=Q+ {[%clk 0:02:07.3]} 1-0